bitfinex/quotes_BTCUSD_20240823
["timestamp","ask_amount","ask_price","bid_price","bid_amount"]
[1724452381826,5.0,64721.0,64720.0,1.23775801]
[1724452382171,5.0,64721.0,64720.0,1.45815801]
[1724452382371,5.0,64721.0,64720.0,1.55815801]
[1724452382576,5.0,64721.0,64720.0,1.55915801]
[1724452382981,5.0,64721.0,64720.0,1.56915801]
[1724452382982,5.001,64721.0,64720.0,1.56915801]
[1724452383375,5.0,64721.0,64720.0,1.55915801]
[1724452383842,5.0,64721.0,64720.0,1.57315801]
[1724452383843,5.001,64721.0,64720.0,1.57315801]
[1724452384050,5.001,64721.0,64720.0,1.57215801]
[1724452385301,5.001,64721.0,64720.0,2.62724636]
[1724452385302,4.176049,64721.0,64720.0,2.62724636]
[1724452385495,4.176049,64721.0,64720.0,2.75501489]
[1724452385496,3.61271188,64721.0,64720.0,2.75501489]
[1724452385750,2.27131664,64721.0,64720.0,3.0854624]
[1724452385947,1.97200568,64721.0,64720.0,3.44500827]
[1724452386148,0.000826,64734.0,64733.0,1.765215]
[1724452386358,0.000826,64734.0,64733.0,5.07746888]
[1724452386618,1.34356338,64743.0,64742.0,0.86747436]
[1724452386790,1.34356338,64743.0,64742.0,2.35932437]
[1724452386993,1.34356338,64743.0,64742.0,4.00666192]
[1724452387390,1.34356338,64743.0,64742.0,3.96884159]
[1724452387600,1.33856338,64743.0,64742.0,3.96884159]
[1724452388028,1.33856338,64743.0,64742.0,3.99184159]
[1724452388224,1.33856338,64743.0,64742.0,3.30607923]
[1724452388431,1.33856338,64743.0,64742.0,1.70030901]
[1724452388587,1.33856338,64743.0,64742.0,2.12653901]
[1724452388790,1.18410838,64743.0,64742.0,2.47466198]
[1724452388989,1.18410838,64743.0,64742.0,2.82221629]
[1724452389223,1.18410838,64743.0,64742.0,2.83621629]
[1724452389423,1.18410838,64743.0,64742.0,2.88143365]
[1724452389642,1.02965338,64743.0,64742.0,2.48866198]
[1724452389803,1.02965338,64743.0,64742.0,3.33079669]
[1724452390010,1.02965338,64743.0,64742.0,3.2995823]
[1724452390212,1.02965338,64743.0,64742.0,2.99799824]
[1724452390419,1.02965338,64743.0,64742.0,2.95936592]
[1724452390593,1.02965338,64743.0,64742.0,3.00453505]
[1724452390594,0.87519838,64743.0,64742.0,3.00453505]
[1724452390799,0.87519838,64743.0,64742.0,2.9979975]
[1724452391165,0.87519838,64743.0,64742.0,2.95936592]
[1724452391372,0.87519838,64743.0,64742.0,2.89882701]
[1724452391488,0.87519838,64743.0,64742.0,2.93803198]
[1724452392011,0.87519838,64743.0,64742.0,2.64311398]
[1724452392560,0.87519838,64743.0,64742.0,2.56290901]
[1724452392761,0.87519838,64743.0,64742.0,2.29454101]
[1724452392995,0.87519838,64743.0,64742.0,2.31054101]
[1724452393209,0.87519838,64743.0,64742.0,1.77669101]
[1724452393419,0.87519838,64743.0,64742.0,1.74669101]
[1724452393623,0.87519838,64743.0,64742.0,0.63354801]
[1724452393624,1.46479838,64743.0,64742.0,0.63354801]
[1724452393833,1.46479838,64743.0,64742.0,0.78800701]
[1724452394039,1.46479838,64743.0,64742.0,0.63354801]
[1724452394234,1.46479838,64743.0,64742.0,0.61954801]
[1724452394677,1.46479838,64743.0,64742.0,0.47737]
[1724452395296,0.4093,64738.0,64725.0,0.46876099]
[1724452395500,0.4093,64736.0,64732.0,0.15617801]
[1724452397551,0.4093,64736.0,64735.0,0.463426]
[1724452397700,0.4093,64736.0,64735.0,0.15617801]
[1724452398134,0.4093,64736.0,64735.0,0.31065301]
[1724452398334,0.4093,64736.0,64735.0,0.61960401]
[1724452398535,0.4093,64736.0,64735.0,0.31065301]
[1724452398699,0.4093,64736.0,64735.0,0.16817801]
[1724452398895,0.4093,64736.0,64735.0,0.63160401]
[1724452399158,0.4093,64736.0,64735.0,0.92855501]
[1724452399360,0.87519838,64743.0,64741.0,0.154461]
[1724452399361,0.4093,64742.0,64741.0,0.154461]
[1724452399723,0.4093,64742.0,64741.0,0.31063901]
[1724452400398,0.4093,64742.0,64741.0,0.15617801]
[1724452400837,0.4093,64742.0,64729.0,0.308979]
[1724452401093,0.4093,64742.0,64740.0,0.154463]
[1724452401330,0.4093,64742.0,64741.0,0.15617801]
[1724452401958,0.410126,64742.0,64741.0,0.17017801]
[1724452402160,0.410126,64742.0,64741.0,0.94248501]
[1724452402583,0.410126,64742.0,64741.0,1.31020509]
[1724452402584,0.000826,64742.0,64741.0,1.31020509]
[1724452402799,0.000826,64742.0,64741.0,2.36917709]
[1724452403798,0.000826,64742.0,64741.0,2.37517709]
[1724452404051,0.000826,64742.0,64741.0,2.29993901]
[1724452404231,0.000826,64742.0,64741.0,2.57189201]
[1724452404466,0.000826,64742.0,64741.0,2.56589201]
[1724452404654,0.000826,64742.0,64741.0,2.57989201]
[1724452405064,0.85656219,64743.0,64742.0,1.426061]
[1724452405241,0.85656219,64743.0,64742.0,1.82751701]
[1724452405471,0.85656219,64743.0,64742.0,1.93527001]
[1724452405674,0.85656219,64743.0,64742.0,1.93727001]
[1724452406009,0.85656219,64743.0,64742.0,1.33739101]
[1724452407035,0.85656219,64743.0,64742.0,1.35139101]
[1724452407252,0.85656219,64743.0,64742.0,1.04247301]
[1724452407480,0.85656219,64743.0,64742.0,0.63355501]
[1724452407682,0.85656219,64743.0,64742.0,0.92847301]
[1724452407925,0.85656219,64743.0,64742.0,0.94247301]
[1724452408157,0.85656219,64743.0,64742.0,1.25139101]
[1724452408370,0.85656219,64743.0,64742.0,1.23739101]
[1724452408775,0.85656219,64743.0,64742.0,1.25239101]
[1724452408980,0.85656219,64743.0,64742.0,1.63532101]
[1724452409190,0.85656219,64743.0,64742.0,1.27539101]
[1724452409419,0.85656219,64743.0,64742.0,1.37539101]
[1724452409838,0.85656219,64743.0,64742.0,1.36139101]
[1724452410243,0.85656219,64743.0,64742.0,0.73355501]
[1724452410451,1.26586219,64743.0,64742.0,0.73355501]
[1724452410674,1.26586219,64743.0,64742.0,1.02847301]
[1724452410875,1.26586219,64743.0,64742.0,0.31063701]
[1724452411076,1.26586219,64743.0,64742.0,0.32463701]
[1724452411327,1.26586219,64743.0,64742.0,0.63355501]
[1724452411504,1.26586219,64743.0,64742.0,0.61955501]
[1724452411958,1.26586219,64743.0,64742.0,0.63355501]
[1724452412389,1.26586219,64743.0,64742.0,0.94247301]
[1724452412790,1.26586219,64743.0,64742.0,0.63355501]
[1724452413010,1.26586219,64743.0,64742.0,0.61955501]
[1724452413220,1.46156219,64743.0,64742.0,0.15617801]
[1724452413426,1.46156219,64743.0,64742.0,0.17017801]
[1724452413643,1.46156219,64743.0,64742.0,0.014]
[1724452414055,0.3895,64742.0,64730.0,0.599475]
[1724452414264,0.3895,64742.0,64733.0,0.46513701]
[1724452414471,0.3895,64742.0,64733.0,0.15617801]
[1724452414676,0.3895,64742.0,64734.0,0.154477]
[1724452414893,0.3895,64742.0,64735.0,0.15617801]
[1724452416166,0.3905,64742.0,64735.0,0.15617801]
[1724452416777,0.3895,64742.0,64735.0,0.15617801]
[1724452417008,0.3895,64742.0,64735.0,0.15717801]
[1724452417551,0.3895,64742.0,64736.0,0.308946]
[1724452417702,0.3895,64742.0,64741.0,0.154461]
[1724452417919,0.3895,64742.0,64741.0,0.92848501]
[1724452418161,0.3895,64742.0,64741.0,0.31063901]
[1724452418362,0.3895,64742.0,64741.0,0.92848501]
[1724452419137,0.85738819,64743.0,64742.0,0.772295]
[1724452419360,0.85738819,64743.0,64742.0,1.23739101]
[1724452419777,0.85738819,64743.0,64742.0,1.54630901]
[1724452420022,0.85738819,64743.0,64742.0,1.57830901]
[1724452420222,0.85738819,64743.0,64742.0,1.91183301]
[1724452420637,0.85738819,64743.0,64742.0,2.60724294]
[1724452420857,0.85738819,64743.0,64742.0,2.88912198]
[1724452421279,0.85738819,64743.0,64742.0,2.79874294]
[1724452421447,0.85738819,64743.0,64742.0,2.91171674]
[1724452421640,0.85738819,64743.0,64742.0,2.79874294]
[1724452421872,0.85738819,64743.0,64742.0,3.06224294]
[1724452422102,0.85738819,64743.0,64742.0,3.01807161]
[1724452422491,0.85738819,64743.0,64742.0,3.03207161]
[1724452422956,0.85738819,64743.0,64742.0,3.01807161]
[1724452423420,0.85738819,64743.0,64742.0,2.72315361]
[1724452423832,0.85738819,64743.0,64742.0,2.70915361]
[1724452424251,0.85738819,64743.0,64742.0,2.72315245]
[1724452424467,0.85738819,64743.0,64742.0,2.91457645]
[1724452424640,0.85738819,64743.0,64742.0,2.70095945]
[1724452425044,0.85738819,64743.0,64742.0,1.98655845]
[1724452425259,0.85738819,64743.0,64742.0,2.10170645]
[1724452425554,0.85738819,64743.0,64742.0,2.13263645]
[1724452426456,0.85738819,64743.0,64742.0,2.11863645]
[1724452426670,0.85738819,64743.0,64742.0,2.07355845]
[1724452426875,0.85738819,64743.0,64742.0,2.47293745]
[1724452427085,0.85738819,64743.0,64742.0,2.47493745]
[1724452427290,0.85738819,64743.0,64742.0,2.46093745]
[1724452427695,0.85738819,64743.0,64742.0,2.38562245]
[1724452427905,0.85738819,64743.0,64742.0,2.07555845]
[1724452428105,0.85738819,64743.0,64742.0,2.54938105]
[1724452428515,0.85738819,64743.0,64742.0,2.56338105]
[1724452428648,0.85738819,64743.0,64742.0,2.09246705]
[1724452428847,0.85738819,64743.0,64742.0,2.64205071]
[1724452429460,4.59020521,64762.0,64761.0,1.995048]
[1724452429667,4.56600129,64762.0,64761.0,3.70151683]
[1724452429889,4.56600129,64762.0,64761.0,3.80351683]
[1724452430416,4.56600129,64762.0,64761.0,3.22807283]
[1724452430790,4.56600129,64762.0,64761.0,3.28992283]
[1724452430966,4.56600129,64762.0,64761.0,3.29192283]
[1724452431178,4.56600129,64762.0,64761.0,2.71459583]
[1724452431373,4.56600129,64762.0,64761.0,2.11094783]
[1724452431588,4.56600129,64762.0,64761.0,2.11194783]
[1724452431789,4.56600129,64762.0,64761.0,1.83778739]
[1724452432161,4.56600129,64762.0,64761.0,1.78467901]
[1724452432366,4.56600129,64762.0,64761.0,1.80867901]
[1724452432923,4.56600129,64762.0,64761.0,2.51387015]
[1724452433126,4.56600129,64762.0,64761.0,2.52987015]
[1724452433342,4.56600129,64762.0,64761.0,3.04661577]
[1724452433553,4.56600129,64762.0,64761.0,3.04660076]
[1724452433755,4.56600129,64762.0,64761.0,3.1460733]
[1724452433983,4.56600129,64762.0,64761.0,2.45774676]
[1724452434201,4.56600129,64762.0,64761.0,2.75818274]
[1724452434585,4.56600129,64762.0,64761.0,2.52583074]
[1724452434864,4.56600129,64762.0,64761.0,1.85076299]
[1724452435074,4.56600129,64762.0,64761.0,1.82806624]
[1724452435506,4.56600129,64762.0,64761.0,1.78267901]
[1724452435662,4.56600129,64762.0,64761.0,2.28364124]
[1724452435871,4.56600129,64762.0,64761.0,2.28564124]
[1724452436075,4.56600129,64762.0,64761.0,2.95941505]
[1724452436441,4.56600129,64762.0,64761.0,2.89133107]
[1724452436854,4.56600129,64762.0,64761.0,2.34757655]
[1724452437052,4.56600129,64762.0,64761.0,2.30250601]
[1724452437271,4.56600129,64762.0,64761.0,2.37057655]
[1724452437474,4.56600129,64762.0,64761.0,2.71281155]
[1724452437679,4.56600129,64762.0,64761.0,2.64674101]
[1724452438083,4.56600129,64762.0,64761.0,2.76016178]
[1724452438309,4.47335529,64762.0,64761.0,3.30977877]
[1724452438534,4.47335529,64762.0,64761.0,3.21904948]
[1724452438535,4.41159129,64762.0,64761.0,3.21904948]
[1724452438967,4.41159129,64762.0,64761.0,3.33248878]
[1724452439169,4.41159129,64762.0,64761.0,3.21904948]
[1724452439388,4.41159129,64762.0,64761.0,3.30974008]
[1724452439790,4.41159129,64762.0,64761.0,2.9221862]
[1724452439970,4.41159129,64762.0,64761.0,2.78232601]
[1724452440968,4.41159129,64762.0,64761.0,3.19256526]
[1724452441175,4.25718129,64762.0,64761.0,3.42268279]
[1724452441665,4.19541729,64762.0,64761.0,3.69685139]
[1724452442111,4.19541729,64762.0,64761.0,6.42304473]
[1724452442291,4.10277129,64762.0,64761.0,6.42304473]
[1724452442543,4.10277129,64762.0,64761.0,6.64918303]
[1724452442757,3.94836129,64762.0,64761.0,6.64918303]
[1724452442979,3.94836129,64762.0,64761.0,5.47133412]
[1724452443196,3.94836129,64762.0,64761.0,5.19964803]
[1724452443630,3.85571529,64762.0,64761.0,5.19964803]
[1724452443849,3.82483329,64762.0,64761.0,5.19964803]
[1724452444065,3.79395129,64762.0,64761.0,4.82697773]
[1724452444291,3.79395129,64762.0,64761.0,4.57097912]
[1724452444516,3.79395129,64762.0,64761.0,2.81428678]
[1724452444747,3.79395129,64762.0,64761.0,2.55417033]
[1724452444992,3.79395129,64762.0,64761.0,2.48612701]
[1724452445212,3.79395129,64762.0,64761.0,1.82409201]
[1724452445426,3.79395129,64762.0,64761.0,1.97010201]
[1724452445645,3.79395129,64762.0,64761.0,1.98410201]
[1724452446314,3.79395129,64762.0,64761.0,2.29292901]
[1724452446514,3.79395129,64762.0,64761.0,2.39292901]
[1724452446776,3.79395129,64762.0,64761.0,1.83809201]
[1724452447042,3.79395129,64762.0,64761.0,1.86109201]
[1724452447805,3.79395129,64762.0,64761.0,2.42766901]
[1724452448047,3.79395129,64762.0,64761.0,1.86109201]
[1724452448548,3.79395129,64762.0,64761.0,2.17191901]
[1724452448744,3.79395129,64762.0,64761.0,2.67108801]
[1724452448956,3.79395129,64762.0,64761.0,2.35826101]
[1724452449377,3.79395129,64762.0,64761.0,2.15291001]
[1724452449611,3.79395129,64762.0,64761.0,2.65209101]
[1724452450090,3.73218729,64762.0,64761.0,3.22441801]
[1724452450305,3.70130529,64762.0,64761.0,3.83663996]
[1724452450526,3.63954129,64762.0,64761.0,3.83663996]
[1724452450786,3.48513129,64762.0,64761.0,3.83863996]
[1724452450996,2.30193782,64762.0,64761.0,5.73549927]
[1724452451204,2.30193782,64762.0,64761.0,5.39793877]
[1724452451399,2.30193782,64762.0,64761.0,5.39884737]
[1724452451653,2.27105582,64762.0,64761.0,5.39884737]
[1724452452095,2.16404652,64762.0,64761.0,5.39884737]
[1724452452324,2.10228252,64762.0,64761.0,5.39884737]
[1724452452796,1.94787252,64762.0,64761.0,5.39884737]
[1724452453730,1.88610852,64762.0,64761.0,5.35680907]
[1724452453937,1.79346252,64762.0,64761.0,5.35680907]
[1724452454155,1.79346252,64762.0,64761.0,5.39507693]
[1724452454366,1.79346252,64762.0,64761.0,5.38107693]
[1724452454591,1.73169852,64762.0,64761.0,5.38107693]
[1724452454806,1.52845654,64762.0,64761.0,5.47090453]
[1724452455020,1.52845654,64762.0,64761.0,6.76250834]
[1724452455247,1.48069228,64762.0,64761.0,6.08600834]
[1724452455460,1.48069228,64762.0,64761.0,5.94985778]
[1724452455667,1.32628228,64762.0,64761.0,5.47088134]
[1724452456312,1.32628228,64762.0,64761.0,5.43261348]
[1724452456531,1.32628228,64762.0,64761.0,4.98106192]
[1724452456753,1.17187228,64762.0,64761.0,4.60088992]
[1724452456976,1.17187228,64762.0,64761.0,7.60130674]
[1724452457182,1.17187228,64762.0,64761.0,7.91013374]
[1724452457655,0.00827,64771.0,64770.0,1.03789]
[1724452457869,1e-08,64771.0,64770.0,5.34484451]
[1724452458083,1e-08,64771.0,64770.0,2.51237651]
[1724452458529,1e-08,64771.0,64770.0,2.55627347]
[1724452458739,1e-08,64771.0,64770.0,2.6015772]
[1724452458919,1e-08,64771.0,64770.0,3.19526967]
[1724452459158,1e-08,64771.0,64770.0,2.88648567]
[1724452459563,1e-08,64771.0,64770.0,2.90948567]
[1724452460203,1e-08,64771.0,64770.0,2.86558871]
[1724452460611,1e-08,64771.0,64770.0,3.20771022]
[1724452461511,0.00826,64774.0,64770.0,3.20771022]
[1724452461512,1e-08,64774.0,64773.0,1.734165]
[1724452461696,1e-08,64774.0,64773.0,2.88660913]
[1724452461937,1e-08,64774.0,64773.0,2.86252148]
[1724452462135,1e-08,64774.0,64773.0,2.81862452]
[1724452463205,1e-08,64774.0,64773.0,2.48685452]
[1724452463429,1e-08,64774.0,64773.0,2.48685526]
[1724452463636,1e-08,64774.0,64773.0,3.05912526]
[1724452463860,0.23731585,64836.0,64804.0,0.004]
[1724452464067,0.46876099,64805.0,64804.0,0.004]
[1724452464282,0.02418919,64818.0,64811.0,0.002]
[1724452464492,0.154271,64821.0,64808.0,0.004]
[1724452464696,0.02418582,64818.0,64808.0,0.004]
[1724452464936,0.02418582,64818.0,64814.0,0.002]
[1724452465189,0.02418582,64818.0,64815.0,0.002]
[1724452465398,0.02418582,64818.0,64815.0,0.15817801]
[1724452465604,0.02418582,64818.0,64816.0,0.002]
[1724452465811,0.02418582,64818.0,64817.0,0.15817801]
[1724452466020,0.02418582,64818.0,64817.0,0.15617801]
[1724452466241,0.02418582,64818.0,64817.0,0.15817801]
[1724452466495,0.308504,64829.0,64817.0,0.15617801]
[1724452466496,0.308511,64828.0,64817.0,0.15617801]
[1724452466695,1.906043,64836.0,64792.0,0.4768]
[1724452466696,0.154264,64824.0,64812.0,0.002]
[1724452466896,0.154266,64823.0,64812.0,0.15817801]
[1724452467148,0.5995,64822.0,64814.0,0.002]
[1724452467343,0.4065,64820.0,64815.0,0.15817801]
[1724452467557,0.4065,64820.0,64819.0,0.002]
[1724452467765,0.4065,64820.0,64819.0,0.15617801]
[1724452468417,0.43068294,64820.0,64819.0,0.15817801]
[1724452468622,0.43068294,64820.0,64819.0,0.15917801]
[1724452468936,0.43068294,64820.0,64819.0,0.31345301]
[1724452469136,0.43068294,64820.0,64819.0,0.15917801]
[1724452469364,0.43068294,64820.0,64819.0,0.46972901]
[1724452469561,0.43068294,64820.0,64819.0,0.16117801]
[1724452469871,0.43168294,64820.0,64819.0,0.16117801]
[1724452470278,0.43168294,64820.0,64819.0,0.16017801]
[1724452470490,0.43168294,64820.0,64819.0,0.16517801]
[1724452470900,0.43068294,64820.0,64819.0,0.31945301]
[1724452471108,0.43068294,64820.0,64819.0,0.16017801]
[1724452471310,0.43068294,64820.0,64819.0,0.93655501]
[1724452471520,0.43068294,64820.0,64819.0,0.62800401]
[1724452471738,0.43168294,64820.0,64819.0,0.64100401]
[1724452471951,0.43168294,64820.0,64819.0,0.67927187]
[1724452471952,0.4075,64820.0,64819.0,0.67927187]
[1724452472162,0.4075,64820.0,64819.0,0.67427187]
[1724452472377,0.4075,64820.0,64819.0,0.98282287]
[1724452472636,0.4075,64820.0,64819.0,1.00873954]
[1724452472871,0.4065,64820.0,64819.0,1.30429054]
[1724452473050,0.44017833,64831.0,64830.0,0.158249]
[1724452473257,1.59757,64836.0,64830.0,0.158249]
[1724452473258,1.59757,64836.0,64835.0,0.005]
[1724452473469,0.416,64881.0,64860.0,0.035]
[1724452473589,0.416,64881.0,64860.0,1.23159716]
[1724452473797,0.00827,64883.0,64860.0,1.23159716]
[1724452473798,0.416,64864.0,64860.0,0.19108801]
[1724452474009,0.416,64864.0,64860.0,0.34435601]
[1724452474391,0.00827,64883.0,64868.0,0.496477]
[1724452474596,0.00827,64883.0,64868.0,1.64919916]
[1724452474798,0.00827,64883.0,64872.0,1.512956]
[1724452475013,0.00827,64883.0,64872.0,2.27252401]
[1724452475215,0.00827,64883.0,64879.0,1.35103815]
[1724452475452,0.02,64927.0,64879.0,1.35103815]
[1724452475453,4e-07,64909.0,64908.0,0.80532]
[1724452475652,0.416,64963.0,64908.0,0.80532]
[1724452475653,0.416,64963.0,64933.0,0.495013]
[1724452475873,0.416,64963.0,64933.0,0.618013]
[1724452476073,0.1847,64935.0,64924.0,0.004]
[1724452476204,0.1847,64935.0,64917.0,0.1]
[1724452476205,0.416,64962.0,64933.0,0.45570716]
[1724452476405,0.416,64962.0,64933.0,1.18781376]
[1724452476618,0.33538311,64985.0,64933.0,1.18781376]
[1724452476619,3.9076,65039.0,64950.0,0.001]
[1724452476823,2.89745639,65000.0,64950.0,0.001]
[1724452477157,1.70064899,65000.0,64985.0,0.46876099]
[1724452477289,0.00900431,65013.0,65012.0,1.123335]
[1724452477492,0.22595347,65054.0,65012.0,1.123335]
[1724452477493,0.22595347,65054.0,65050.0,0.2]
[1724452477857,0.00144473,65070.0,65050.0,0.2]
[1724452477858,0.00144473,65070.0,65050.0,0.6899264]
[1724452478054,0.33680734,65089.0,65060.0,0.2]
[1724452478258,0.00142423,65089.0,65060.0,0.2]
[1724452478711,0.00142423,65089.0,65050.0,0.0134264]
[1724452478712,0.001,65067.0,65050.0,0.0134264]
[1724452478949,0.001,65058.0,65041.0,0.46876099]
[1724452479163,0.001,65058.0,65010.0,0.4]
[1724452479164,0.153744,65043.0,65042.0,0.46876099]
[1724452479391,0.416,65053.0,65042.0,0.46876099]
[1724452479592,0.416,65051.0,65043.0,0.00203747]
[1724452479818,0.416,65051.0,65020.0,0.2]
[1724452480081,1.2571,65050.0,65028.0,0.2]
[1724452480345,1.2571,65050.0,65016.0,0.2]
[1724452480560,0.153744,65043.0,65016.0,0.2]
[1724452480765,1.2571,65050.0,65043.0,0.001]
[1724452480976,1.2571,65050.0,65049.0,0.15617801]
[1724452481204,1.410827,65050.0,65049.0,0.15617801]
[1724452481410,1.43492536,65050.0,65049.0,0.15617801]
[1724452481842,1.28119836,65050.0,65049.0,0.16017801]
[1724452482017,0.44392199,65038.0,65035.0,0.1383]
[1724452482231,0.44392199,65038.0,65037.0,0.03]
[1724452482441,0.44392199,65038.0,65037.0,0.900846]
[1724452482652,0.153777,65029.0,65028.0,0.01]
[1724452482909,0.461332,65029.0,65028.0,0.01]
[1724452483139,0.877494,65006.0,65005.0,0.061607]
[1724452483367,0.15385,64998.0,64997.0,0.06613521]
[1724452483581,0.153874,64988.0,64975.0,0.061636]
[1724452483844,0.461707,64976.0,64975.0,0.061636]
[1724452484069,0.461707,64976.0,64975.0,0.21738605]
[1724452484523,0.461707,64976.0,64951.0,0.46876099]
[1724452484524,0.001,64974.0,64951.0,0.46876099]
[1724452484737,0.1,64976.0,64932.0,0.2]
[1724452484738,0.001,64968.0,64961.0,0.46876099]
[1724452484947,0.001,64968.0,64952.0,0.15822774]
[1724452484948,0.001,64968.0,64952.0,0.15617801]
[1724452485155,0.461871,64953.0,64952.0,0.15617801]
[1724452485359,0.02413258,64967.0,64934.0,0.061673]
[1724452485360,0.416,64952.0,64934.0,0.061673]
[1724452485567,0.416,64952.0,64919.0,0.03]
[1724452485568,0.416,64952.0,64942.0,0.46876099]
[1724452485779,0.307929,64950.0,64943.0,0.15822829]
[1724452485986,0.307925,64951.0,64943.0,0.15617801]
[1724452486136,0.153978,64944.0,64943.0,0.15617801]
[1724452486567,0.461935,64944.0,64943.0,0.15617801]
[1724452486814,0.153978,64944.0,64943.0,0.15617801]
[1724452486930,0.416,64952.0,64943.0,0.15617801]
[1724452487140,0.001,64951.0,64946.0,0.03]
[1724452487358,0.0152521,64972.0,64955.0,0.03]
[1724452487561,0.0152521,64972.0,64950.0,0.15617801]
[1724452487562,0.416,64981.0,64966.0,0.03]
[1724452487836,0.1847,64987.0,64967.0,0.902103]
[1724452488223,0.1847,64987.0,64968.0,0.375975]
[1724452488224,0.338577,64987.0,64968.0,0.375975]
[1724452488431,0.000825,64976.0,64969.0,1.051823]
[1724452488631,0.000825,64976.0,64962.0,0.1]
[1724452488830,0.000825,64976.0,64963.0,1.63408353]
[1724452489088,0.000825,64976.0,64964.0,1.346743]
[1724452489295,0.000825,64976.0,64969.0,0.15617801]
[1724452490137,0.153907,64975.0,64969.0,0.15617801]
[1724452490353,0.000825,64976.0,64947.0,0.6765]
[1724452490563,0.416,64968.0,64955.0,0.15617801]
[1724452490772,0.153931,64964.0,64955.0,0.15617801]
[1724452490976,0.416,64968.0,64955.0,0.15617801]
[1724452490977,0.417,64968.0,64955.0,0.15617801]
[1724452491177,0.153931,64965.0,64955.0,0.15617801]
[1724452491633,0.001,64967.0,64955.0,0.15617801]
[1724452491850,0.001,64963.0,64955.0,0.16317801]
[1724452492061,0.15395,64956.0,64955.0,0.007]
[1724452492695,0.46185,64956.0,64955.0,0.007]
[1724452492906,0.7088,64956.0,64922.0,0.53044599]
[1724452493125,0.3999,64956.0,64951.0,0.46876099]
[1724452493329,0.3999,64956.0,64952.0,0.15822775]
[1724452493535,0.3999,64956.0,64952.0,0.15617801]
[1724452493948,0.3999,64956.0,64922.0,0.53044599]
[1724452493949,0.001,64950.0,64922.0,0.53044599]
[1724452494210,0.3999,64956.0,64931.0,0.15617801]
[1724452494423,0.160027,64955.0,64931.0,0.15617801]
[1724452494629,0.160027,64955.0,64952.0,0.014]
[1724452494836,0.160027,64955.0,64932.0,0.00205136]
[1724452494837,0.02413631,64951.0,64932.0,0.00205136]
[1724452495038,0.307934,64949.0,64933.0,0.15617801]
[1724452495285,0.02413631,64951.0,64933.0,0.15617801]
[1724452495552,0.4009,64956.0,64934.0,0.00205234]
[1724452495761,0.708802,64956.0,64935.0,0.15617801]
[1724452495966,0.153957,64953.0,64936.0,0.00205101]
[1724452496175,0.708802,64956.0,64936.0,0.00205101]
[1724452496176,0.554852,64956.0,64937.0,0.15617801]
[1724452496402,0.001,64950.0,64937.0,0.15617801]
[1724452496578,0.153981,64943.0,64922.0,0.46876099]
[1724452496879,0.55607801,64956.0,64922.0,0.46876099]
[1724452496880,0.188,64940.0,64923.0,0.15617801]
[1724452497645,0.188,64940.0,64924.0,0.00205282]
[1724452497896,0.188,64940.0,64925.0,0.15617801]
[1724452498131,0.188,64940.0,64926.0,0.00205283]
[1724452498395,0.188,64940.0,64937.0,0.009]
[1724452498653,0.188,64940.0,64938.0,0.15617801]
[1724452498905,0.3999,64941.0,64938.0,0.15617801]
[1724452499946,0.001,64940.0,64938.0,0.15617801]
[1724452500181,0.1906,64950.0,64939.0,0.0020517]
[1724452500423,0.001,64941.0,64940.0,0.15617801]
[1724452501146,0.1906,64950.0,64940.0,0.15617801]
[1724452501391,0.1906,64950.0,64941.0,0.00205064]
[1724452501634,0.1916,64950.0,64942.0,0.15617801]
[1724452501858,0.001,64950.0,64943.0,0.15822865]
[1724452502300,0.001,64950.0,64943.0,0.15617801]
[1724452502529,0.001,64950.0,64916.0,0.001]
[1724452502530,0.001,64950.0,64916.0,0.004]
[1724452502720,0.5871,64948.0,64921.0,0.15617801]
[1724452502987,0.00384965,64947.0,64921.0,0.15617801]
[1724452503177,0.153985,64941.0,64940.0,0.005]
[1724452503417,0.154001,64935.0,64921.0,0.15617801]
[1724452503622,0.001,64941.0,64922.0,0.46876099]
[1724452503623,0.00385061,64934.0,64922.0,0.46876099]
[1724452503826,0.00385061,64934.0,64920.0,0.004]
[1724452504029,0.3965,64927.0,64920.0,0.004]
[1724452504246,0.3965,64927.0,64902.0,0.46876099]
[1724452504247,0.15787284,64926.0,64902.0,0.46876099]
[1724452504449,0.154029,64923.0,64903.0,0.15617801]
[1724452504672,0.0033357,64922.0,64903.0,0.15617801]
[1724452504875,0.61124774,64921.0,64903.0,0.15617801]
[1724452505049,0.61124774,64921.0,64884.0,0.154119]
[1724452505050,0.154047,64916.0,64884.0,0.154119]
[1724452505299,0.154053,64913.0,64894.0,0.46876099]
[1724452505516,1.07549375,64921.0,64894.0,0.46876099]
[1724452505517,0.61124774,64921.0,64895.0,0.15823516]
[1724452505716,0.61124774,64921.0,64898.0,0.15617801]
[1724452505915,0.61124774,64921.0,64899.0,0.00205677]
[1724452506155,0.61124774,64921.0,64920.0,0.001]
[1724452506553,0.61124774,64921.0,64901.0,0.002056]
[1724452506786,0.61124774,64921.0,64902.0,0.15617801]
[1724452506983,0.308112,64912.0,64895.0,0.46876099]
[1724452507227,0.15406,64910.0,64896.0,0.15617801]
[1724452507435,0.246301,64909.0,64877.0,0.46876099]
[1724452507641,0.24244901,64909.0,64883.0,0.154123]
[1724452507848,0.24244901,64909.0,64884.0,0.15617801]
[1724452508266,0.00385207,64908.0,64884.0,0.15617801]
[1724452508894,0.26003008,64908.0,64884.0,0.15617801]
[1724452509120,0.1906,64902.0,64884.0,0.15617801]
[1724452509334,0.00385242,64901.0,64884.0,0.15617801]
[1724452509533,0.1906,64902.0,64884.0,0.15617801]
[1724452509534,0.00385235,64900.0,64884.0,0.15617801]
[1724452509781,0.00385236,64900.0,64884.0,0.15617801]
[1724452509985,0.00385236,64900.0,64873.0,0.009064]
[1724452509986,0.154091,64897.0,64873.0,0.009064]
[1724452510199,0.00385285,64896.0,64874.0,0.31032201]
[1724452510432,0.00385285,64896.0,64874.0,0.15617801]
[1724452510433,0.3965,64895.0,64874.0,0.15617801]
[1724452510639,0.00385292,64894.0,64874.0,0.15617801]
[1724452510849,0.02415919,64891.0,64874.0,0.15617801]
[1724452511073,0.00385313,64890.0,64874.0,0.15617801]
[1724452511276,0.00385313,64890.0,64873.0,0.009064]
[1724452511482,0.00385313,64890.0,64873.0,0.16524201]
[1724452511903,0.5871,64889.0,64873.0,0.16524201]
[1724452512105,0.154115,64887.0,64873.0,0.16524201]
[1724452512314,0.00385323,64886.0,64873.0,0.16524201]
[1724452512517,0.5871,64889.0,64873.0,0.009064]